bitfinex/quotes_SOLUSD_20241010
["timestamp","ask_amount","ask_price","bid_price","bid_amount"]
[1728576865574,18.0495,138.51,138.44,7.223]
[1728576865871,7.2209,138.49,138.44,7.223]
[1728576866660,7.2209,138.49,138.45,7.2227]
[1728576866863,18.0495,138.51,138.43,18.0587]
[1728576867174,7.2214,138.48,138.44,7.2231]
[1728576867653,7.2208,138.49,138.45,7.2228]
[1728576867852,7.2202,138.5,138.46,7.2221]
[1728576868061,7.2198,138.51,138.46,7.2221]
[1728576868673,7.2202,138.5,138.45,25.2792]
[1728576868873,15.593,138.54,138.45,18.0566]
[1728576869175,7.2217,138.48,138.44,7.2231]
[1728576869685,7.2218,138.47,138.43,7.2237]
[1728576872394,7.2213,138.48,138.44,7.2233]
[1728576872988,7.2213,138.48,138.45,7.2227]
[1728576873292,7.2213,138.48,138.44,25.2813]
[1728576875985,18.0481,138.52,138.44,25.2813]
[1728576876192,7.2218,138.47,138.44,18.0581]
[1728576878301,24.027864,138.5,138.41,18.0609]
[1728576878490,7.2237,138.44,138.4,7.2253]
[1728576878863,18.0533,138.48,138.39,23.0372]
[1728576879188,18.0558,138.46,138.39,23.0372]
[1728576879391,7.2247,138.42,138.39,23.0372]
[1728576879573,7.2247,138.42,138.39,30.263]
[1728576881079,7.2239,138.43,138.39,30.263]
[1728576886099,15.377,138.48,138.39,41.102]
[1728576886288,7.2229,138.45,138.41,7.2246]
[1728576886903,7.2235,138.44,138.4,7.2252]
[1728576887493,7.2235,138.44,138.41,7.2248]
[1728576888077,7.2235,138.44,138.4,7.2251]
[1728576888279,7.223,138.45,138.41,7.2248]
[1728576888582,15.377,138.48,138.42,7.224]
[1728576888583,7.2224,138.46,138.42,7.224]
[1728576888977,15.377,138.48,138.41,18.0619]
[1728576889176,7.2221,138.47,138.43,7.2237]
[1728576889402,7.2224,138.46,138.42,7.2241]
[1728576891101,7.2224,138.46,138.43,7.2236]
[1728576891990,7.2224,138.46,138.41,18.0619]
[1728576892193,7.2224,138.46,138.42,7.2239]
[1728576893617,7.2219,138.47,138.43,7.2236]
[1728576894117,7.2229,138.45,138.42,7.2241]
[1728576894295,7.2224,138.46,138.42,7.2241]
[1728576897796,7.2219,138.47,138.44,7.2233]
[1728576897990,7.2219,138.47,138.45,1.44432165]
[1728576898388,7.2209,138.49,138.42,14.05126605]
[1728576898591,7.2204,138.5,138.47,7.2217]
[1728576898814,7.2204,138.5,138.48,1.44403493]
[1728576899322,7.2204,138.5,138.45,18.0569]
[1728576899323,7.2204,138.5,138.46,8.66618052]
[1728576900298,7.2204,138.5,138.46,7.2221]
[1728576900497,7.2204,138.5,138.44,22.0343]
[1728576900498,0.12549,138.54,138.42,18.0598]
[1728576900794,8.42561062,138.55,138.41,22.0343]
[1728576900795,7.2234,138.44,138.41,22.0343]
[1728576901009,7.2229,138.45,138.41,29.2591]
[1728576902225,23.776884,138.49,138.42,18.0607]
[1728576902434,16.2987,138.5,138.43,1.4444124]
[1728576902721,7.2213,138.48,138.44,25.2809]
[1728576903528,7.2208,138.49,138.45,7.2227]
[1728576904405,7.2203,138.5,138.46,8.66632291]
[1728576905621,7.2203,138.5,138.46,26.72162291]
[1728576906725,7.2203,138.5,138.46,25.2775]
[1728576907419,7.2207,138.49,138.46,25.2775]
[1728576907928,7.2203,138.5,138.46,25.2775]
[1728576908521,16.5948,138.53,138.46,18.0554]
[1728576908736,7.2193,138.52,138.48,7.221]
[1728576908937,3.78618262,138.55,138.48,7.221]
[1728576908938,3.78618262,138.55,138.49,1.443846]
[1728576909099,3.78618262,138.55,138.52,7.2191]
[1728576909302,7.2171,138.56,138.53,1.44347124]
[1728576909821,7.2155,138.59,138.55,7.2171]
[1728576910020,15.4791,138.6,138.54,18.0449]
[1728576910224,7.2184,138.54,138.51,22.0653]
[1728576910403,18.0429,138.56,138.48,18.0521]
[1728576910604,7.2197,138.51,138.48,18.0521]
[1728576911028,23.776884,138.55,138.48,18.0521]
[1728576911213,7.2197,138.51,138.48,18.0521]
[1728576911514,18.0456,138.54,138.47,22.0653]
[1728576911730,7.2198,138.51,138.47,29.2868]
[1728576911901,18.0456,138.54,138.47,29.2868]
[1728576911902,7.2193,138.52,138.48,7.2211]
[1728576912516,18.0456,138.54,138.45,8.47517426]
[1728576912517,33.1144,138.54,138.45,8.47517426]
[1728576912827,7.2205,138.5,138.46,7.2222]
[1728576913403,7.2198,138.51,138.47,7.2217]
[1728576913608,7.2202,138.5,138.46,7.2221]
[1728576914642,7.2202,138.5,138.44,18.0572]
[1728576914643,7.221,138.49,138.44,25.2801]
[1728576914836,7.2219,138.47,138.44,18.0572]
[1728576915514,0.25098,138.53,138.43,22.4217]
[1728576915719,7.2232,138.45,138.41,25.2865]
[1728576915916,6.66089,138.51,138.4,6.2512]
[1728576915917,7.2238,138.44,138.4,6.2512]
[1728576916136,7.2234,138.44,138.4,13.4765]
[1728576916735,18.0534,138.48,138.39,16.5677]
[1728576916938,7.224,138.43,138.39,23.7933]
[1728576917442,7.2235,138.44,138.4,7.2254]
[1728576917744,15.4003,138.49,138.4,0.12549]
[1728576917939,7.2222,138.47,138.43,7.2238]
[1728576919919,15.4003,138.49,138.42,18.0607]
[1728576920123,18.0502,138.51,138.44,18.0579]
[1728576920727,7.2208,138.49,138.45,7.2227]
[1728576920912,7.2212,138.48,138.44,25.281]
[1728576921114,7.2221,138.47,138.43,13.4773]
[1728576921315,7.2223,138.46,138.43,6.2537]
[1728576921536,7.2223,138.46,138.42,7.2242]
[1728576921753,18.0502,138.51,138.41,18.18669]
[1728576921754,7.2231,138.45,138.41,25.286]
[1728576921917,18.0546,138.47,138.39,23.0055]
[1728576922122,7.2249,138.42,138.38,25.2914]
[1728576926036,18.0599,138.43,138.36,23.0954]
[1728576926240,23.776884,138.45,138.36,23.0954]
[1728576926556,34.35929,138.46,138.37,19.511863]
[1728576926755,7.224,138.43,138.39,7.2254]
[1728576927056,7.224,138.43,138.4,1.44482414]
[1728576927434,16.177,138.46,138.4,1.44482414]
[1728576927646,7.2234,138.44,138.4,8.66982414]
[1728576927833,7.2234,138.44,138.4,7.225]
[1728576928234,7.2239,138.43,138.39,25.2901]
[1728576929846,7.2239,138.43,138.39,18.0644]
[1728576930054,7.2239,138.43,138.4,7.2253]
[1728576930270,16.177,138.46,138.4,7.2253]
[1728576930440,7.2235,138.44,138.4,7.2253]
[1728576930857,7.2239,138.43,138.39,25.2899]
[1728576933067,7.2253,138.41,138.37,7.2268]
[1728576933952,41.834184,138.45,138.36,41.1629]
[1728576933953,7.2254,138.4,138.36,48.3903]
[1728576934156,23.776884,138.42,138.36,41.1629]
[1728576934361,7.2256,138.4,138.36,48.3903]
[1728576935264,7.2249,138.41,138.37,8.67209853]
[1728576935431,7.2249,138.41,138.37,7.2269]
[1728576935631,7.2249,138.41,138.38,1.4450586]
[1728576935854,7.2249,138.41,138.37,7.2269]
[1728576936053,7.2254,138.4,138.37,7.2269]
[1728576936261,7.2254,138.4,138.36,41.1629]
[1728576936467,7.2254,138.4,138.36,48.3902]
[1728576936756,7.2265,138.38,138.34,7.2281]
[1728576936957,7.227,138.37,138.33,47.1826]
[1728576937265,7.2275,138.36,138.33,25.3003]
[1728576937837,7.2275,138.36,138.33,18.0714]
[1728576938062,7.2281,138.35,138.31,12.54333273]
[1728576939160,18.0664,138.38,138.3,18.0753]
[1728576939373,7.2296,138.32,138.28,7.2313]
[1728576939662,7.2301,138.31,138.28,5.31427043]
[1728576939857,7.2301,138.31,138.27,31.6621]
[1728576940154,7.2297,138.32,138.28,7.2316]
[1728576940662,6.3577,138.37,138.29,18.0777]
[1728576940868,7.2285,138.35,138.31,7.2296]
[1728576941047,7.2285,138.34,138.3,7.2305]
[1728576941245,15.9218,138.34,138.26,34.2731]
[1728576941431,15.9218,138.34,138.26,41.5057]
[1728576941432,7.2309,138.3,138.26,41.5057]
[1728576941639,7.2303,138.31,138.27,7.2321]
[1728576941837,7.2303,138.31,138.26,41.5056]
[1728576942741,7.2297,138.32,138.27,7.232]
[1728576942938,7.2297,138.32,138.27,8.6781866]
[1728576943132,7.2297,138.32,138.27,7.232]
[1728576943347,7.2301,138.31,138.27,7.232]
[1728576945647,15.9218,138.34,138.28,19.52504243]
[1728576945845,7.2291,138.33,138.29,7.231]
[1728576946050,7.2291,138.33,138.3,1.44599213]
[1728576946243,7.2285,138.34,138.3,8.67649213]
[1728576946652,7.2285,138.34,138.28,18.0789]
[1728576946866,7.2285,138.34,138.29,7.231]
[1728576947751,7.2285,138.34,138.3,7.2306]
[1728576947954,7.2285,138.34,138.3,8.67654192]
[1728576948375,7.2279,138.36,138.32,7.2295]
[1728576948572,7.228,138.35,138.31,7.2299]
[1728576949146,7.2276,138.36,138.32,7.2295]
[1728576949463,16.1871,138.4,138.33,1.4457264]
[1728576949774,7.2266,138.38,138.34,7.2281]
[1728576950183,25.08765589,138.43,138.35,1.44548199]
[1728576950382,25.08765589,138.43,138.33,24.027864]
[1728576950554,7.2254,138.4,138.36,25.2957]
[1728576950748,25.08765589,138.43,138.36,18.0684]
[1728576950945,7.225,138.41,138.37,7.2269]
[1728576951149,7.2254,138.4,138.36,25.2957]
[1728576951952,7.2247,138.42,138.38,7.2264]
[1728576952153,16.12445589,138.43,138.39,8.67104844]
[1728576952377,7.2234,138.44,138.4,7.2254]
[1728576952572,41.2618,138.47,138.41,1.44488793]
[1728576952875,34.6648,138.47,138.39,15.2736]
[1728576953056,7.2239,138.43,138.39,15.2736]
[1728576953953,24.027864,138.46,138.39,15.2736]
[1728576954152,30.999584,138.46,138.41,25.2865]
[1728576954456,7.2237,138.44,138.4,7.2253]
[1728576955182,7.2223,138.46,138.42,7.2243]
[1728576955376,7.2219,138.47,138.42,1.44463501]
[1728576955581,7.2208,138.49,138.43,1.44460316]
[1728576956081,7.2203,138.5,138.46,7.2222]
[1728576956375,22.612,138.54,138.44,18.0575]
[1728576956376,7.2207,138.49,138.45,7.2227]
[1728576957180,7.2202,138.5,138.44,18.0575]
[1728576957352,7.2202,138.5,138.46,7.2222]
[1728576957674,21.7131,138.58,138.47,1.44411528]
[1728576957983,7.2186,138.53,138.48,7.2211]
[1728576958278,7.2186,138.53,138.49,1.44391431]
[1728576958488,7.2186,138.53,138.48,7.2211]
[1728576958791,7.2192,138.52,138.48,7.2211]
[1728576961312,24.027864,138.57,138.46,15.3564]
[1728576961471,7.2171,138.56,138.51,7.2192]
[1728576961797,7.2171,138.56,138.48,0.12549]
[1728576961798,7.216,138.58,138.53,7.2185]
[1728576962095,7.2166,138.57,138.52,25.2661]
[1728576963390,7.2175,138.56,138.52,18.047]
[1728576963589,7.2177,138.55,138.49,18.0512]
[1728576963800,7.2187,138.53,138.49,25.2718]
[1728576963978,7.2187,138.53,138.49,18.0512]
[1728576965005,7.2196,138.52,138.47,13.3905]
[1728576965473,24.027864,138.54,138.46,15.3564]
[1728576965677,7.2216,138.48,138.43,40.5957]
[1728576965890,7.2221,138.47,138.43,40.5957]
[1728576966399,7.2226,138.46,138.42,7.2242]
[1728576966895,7.2213,138.48,138.44,7.2232]
[1728576967499,7.2213,138.48,138.43,7.2237]
[1728576967890,7.2213,138.48,138.42,18.0603]
[1728576967891,7.2221,138.47,138.42,18.0603]
[1728576968394,7.2213,138.48,138.43,7.2238]
[1728576968595,0.12549,138.53,138.44,18.0576]
[1728576968897,7.2192,138.52,138.48,7.2211]
[1728576969276,7.2192,138.52,138.48,8.6651118]
[1728576969470,7.2192,138.52,138.47,14.89522005]
[1728576969687,7.2192,138.52,138.48,1.44407572]
[1728576969891,7.2192,138.52,138.47,6.2295]
[1728576970091,7.2192,138.52,138.47,13.4511]
[1728576971029,7.2192,138.52,138.47,6.2295]
[1728576971224,7.2192,138.52,138.48,7.221]
[1728576971506,7.2187,138.53,138.48,25.2738]
[1728576972073,7.2182,138.54,138.49,7.2207]
[1728576972714,7.2172,138.56,138.51,7.2192]
[1728576973008,7.2172,138.56,138.51,8.66289979]
[1728576973207,7.2177,138.55,138.51,7.2193]
[1728576973391,6.5377,138.59,138.5,18.0495]
[1728576973582,7.2166,138.57,138.53,7.2185]
[1728576973896,7.2149,138.61,138.56,7.2169]
[1728576974089,7.2151,138.6,138.54,40.9776]
[1728576974299,7.2156,138.59,138.55,7.2174]
[1728576975208,7.2151,138.6,138.55,7.2174]
[1728576977009,7.2171,138.56,138.52,7.219]
[1728576977310,24.027864,138.6,138.51,24.4526]
[1728576977489,24.027864,138.58,138.5,23.3541]
[1728576977806,7.2186,138.54,138.5,16.134]
[1728576977982,7.2188,138.53,138.48,31.6775]
[1728576978286,7.2188,138.53,138.49,7.2206]
[1728576978480,7.2188,138.53,138.48,31.6777]
[1728576978679,7.2188,138.53,138.49,7.2206]
[1728576980183,7.2177,138.55,138.5,18.0499]
[1728576980380,7.2177,138.55,138.51,7.2196]
[1728576981307,7.2192,138.52,138.48,13.6254]
[1728576981514,7.2197,138.51,138.48,6.4043]
[1728576981692,18.043,138.56,138.48,6.4043]
[1728576982007,7.2192,138.52,138.48,13.6255]
[1728576983323,7.2198,138.51,138.48,6.4043]
[1728576983500,7.2198,138.51,138.47,25.2751]
[1728576983701,7.2202,138.5,138.47,18.0534]
[1728576984002,7.2202,138.5,138.46,16.3943]
[1728576984207,7.2202,138.5,138.46,23.6164]
[1728576984522,18.0455,138.54,138.46,16.3943]
[1728576984815,7.2198,138.51,138.47,7.2217]
[1728576985923,7.2191,138.52,138.48,8.66516554]
[1728576986915,7.2181,138.54,138.5,7.2198]
[1728576987217,24.4876,138.6,138.47,20.0]
[1728576987403,7.2171,138.56,138.52,25.2668]
[1728576990605,24.027864,138.58,138.5,6.013]
[1728576990795,7.2192,138.52,138.49,18.051]
[1728576991289,7.2202,138.5,138.46,47.8251]
[1728576991914,7.2198,138.51,138.47,7.2217]
[1728576992322,7.2202,138.5,138.47,7.2217]
[1728576993017,18.0455,138.54,138.47,7.2217]
[1728576993018,7.2199,138.51,138.47,7.2217]
[1728576994097,18.0482,138.52,138.43,75.8955]
[1728576994326,7.2212,138.48,138.44,7.2232]
[1728576995221,18.0482,138.52,138.43,39.7787]
[1728576995399,7.222,138.47,138.43,47.0025]
[1728576995618,0.25098,138.51,138.43,39.7787]
[1728576995923,16.101,138.53,138.48,7.2211]
[1728576996127,18.045,138.55,138.47,18.054]
[1728576996529,7.2197,138.51,138.47,18.054]
[1728576996823,7.2197,138.51,138.47,25.2756]
[1728576997333,7.2193,138.52,138.48,7.2212]
[1728576997730,7.2198,138.51,138.47,25.2755]
[1728576998245,7.2198,138.51,138.47,18.054]
[1728576998533,7.2198,138.51,138.47,7.2217]
[1728576998734,18.0471,138.53,138.46,18.0554]
[1728576998921,7.2213,138.48,138.44,7.2231]
[1728576999304,24.027864,138.52,138.43,39.779]
[1728576999508,7.2207,138.5,138.46,7.2222]
[1728576999732,7.2207,138.49,138.45,25.2794]
[1728576999935,24.027864,138.52,138.45,25.2794]
[1728576999936,7.2212,138.48,138.45,18.0568]
[1728577000918,24.027864,138.52,138.45,18.0568]
[1728577001118,7.2209,138.49,138.45,25.2795]
[1728577001808,18.05,138.51,138.43,21.7203]
[1728577002109,24.027864,138.5,138.43,21.7203]
[1728577002818,7.222,138.47,138.43,28.9437]
[1728577004028,24.027864,138.5,138.43,21.7203]
[1728577004029,7.2223,138.46,138.43,21.7203]
[1728577004224,18.052,138.49,138.42,18.0598]
[1728577004531,7.2223,138.46,138.42,25.284]
[1728577004739,7.2231,138.45,138.41,7.2246]
[1728577004909,7.2233,138.44,138.4,7.2251]
[1728577005427,7.2227,138.46,138.41,7.2248]
[1728577005635,7.2228,138.45,138.41,7.2248]
[1728577006010,7.2234,138.44,138.4,7.2251]
[1728577006214,7.2229,138.45,138.41,7.2248]
[1728577007336,7.2226,138.46,138.42,8.66909859]
[1728577008044,18.0548,138.47,138.39,21.211]
[1728577008246,7.2244,138.42,138.39,21.211]
[1728577008413,7.2244,138.42,138.37,36.1334]
[1728577008414,7.2253,138.41,138.37,7.2269]
[1728577009031,0.12549,138.44,138.35,21.9731]
[1728577009333,7.2239,138.43,138.39,7.2255]
[1728577009514,23.902374,138.48,138.35,21.9731]
[1728577009515,18.0558,138.46,138.35,21.9731]
[1728577009714,36.1049,138.49,138.42,7.2239]
[1728577009715,18.053,138.49,138.42,7.2239]
[1728577009928,7.2229,138.45,138.41,25.2865]
[1728577010130,18.053,138.49,138.41,18.062]
[1728577010131,7.2234,138.44,138.41,18.062]
[1728577011107,16.4821,138.5,138.36,58.0934013]
[1728577011108,7.224,138.43,138.39,7.2258]
[1728577016147,0.12549,138.44,138.38,18.0651]
[1728577016440,7.2252,138.41,138.38,18.0651]
[1728577016732,7.2244,138.42,138.38,25.2915]
[1728577017540,7.224,138.43,138.39,7.2256]
[1728577017745,7.2232,138.45,138.41,7.2245]
[1728577018033,7.2229,138.45,138.41,7.2248]
[1728577018640,18.0542,138.48,138.4,18.063]
[1728577018831,18.0542,138.48,138.44,7.2233]
[1728577018832,7.2215,138.48,138.44,7.2233]
[1728577019018,7.2215,138.48,138.42,18.0608]
[1728577019019,7.2221,138.47,138.43,8.66826468]
[1728577019213,34.5326,138.5,138.42,18.0608]
[1728577019413,34.5326,138.5,138.39,36.1282]
[1728577019414,7.2228,138.45,138.41,7.2248]
[1728577019844,7.2239,138.43,138.39,18.0636]
[1728577020018,7.2239,138.43,138.4,7.2253]
[1728577020218,7.2235,138.44,138.4,7.2253]
[1728577020525,7.2242,138.43,138.39,25.2893]
[1728577021041,7.2235,138.44,138.4,7.2253]
[1728577021444,24.027864,138.45,138.4,7.2253]
[1728577021745,7.2239,138.43,138.4,7.2253]
[1728577022048,7.2239,138.43,138.39,25.2895]
[1728577022546,18.0531,138.48,138.39,18.0636]
[1728577022748,16.4821,138.5,138.39,36.1284]
[1728577022950,16.4821,138.5,138.4,1.44479524]
[1728577023146,16.4821,138.5,138.43,18.0596]
[1728577023444,7.2224,138.46,138.43,18.0596]
[1728577024047,7.2224,138.46,138.43,25.2834]
[1728577024446,16.4821,138.5,138.39,36.1284]
[1728577024642,16.4821,138.5,138.37,22.6835]
[1728577024643,24.027864,138.49,138.37,22.6835]
[1728577024838,24.027864,138.44,138.38,25.2924]
[1728577025042,7.2245,138.42,138.38,25.2924]
[1728577025245,7.2245,138.42,138.39,7.2258]
[1728577025744,7.2229,138.45,138.41,7.2248]
[1728577026060,18.0544,138.48,138.4,18.0633]
[1728577026061,24.027864,138.47,138.4,18.0633]
[1728577026223,7.2227,138.46,138.42,7.224]
[1728577026650,7.2227,138.46,138.42,25.2849]
[1728577026852,7.2228,138.45,138.42,18.0606]
[1728577027141,7.2228,138.45,138.42,25.2849]
[1728577027352,7.2228,138.45,138.42,18.0606]
[1728577027544,7.2228,138.45,138.41,7.2247]
[1728577028528,7.2228,138.45,138.41,25.2869]
[1728577029649,24.027864,138.47,138.37,22.6835]
[1728577029853,7.2245,138.42,138.38,25.2912]
[1728577030056,18.30578,138.47,138.38,18.0651]
[1728577030357,23.776884,138.46,138.38,18.0651]
[1728577030540,7.225,138.41,138.38,18.0651]
[1728577030855,7.225,138.41,138.37,29.9102]
[1728577031244,18.30828,138.45,138.37,22.6835]
[1728577031438,7.224,138.43,138.39,7.2256]
[1728577031837,7.2247,138.42,138.38,25.2923]
[1728577034260,23.776884,138.44,138.39,7.2258]
[1728577034462,7.2239,138.43,138.39,7.2258]
[1728577034869,7.2247,138.42,138.38,25.2921]
[1728577036565,7.225,138.41,138.38,18.0659]
[1728577037270,7.225,138.41,138.38,25.2922]
[1728577037973,7.225,138.41,138.37,22.6835]
[1728577037974,7.225,138.41,138.37,29.9102]
[1728577039176,7.2257,138.4,138.37,22.6835]
[1728577039478,7.225,138.41,138.37,23.5416]
[1728577039976,24.027864,138.43,138.37,16.3147]
[1728577040153,7.2257,138.4,138.37,16.3147]
[1728577040756,7.2259,138.39,138.35,7.2279]
[1728577040959,24.027864,138.41,138.34,21.3194]
[1728577041264,7.2259,138.39,138.35,25.2975]
[1728577041979,18.0636,138.4,138.32,18.0729]
[1728577042158,24.027864,138.39,138.32,18.0729]
[1728577043369,24.027864,138.39,138.32,25.3021]
[1728577043570,7.2271,138.37,138.33,7.229]
[1728577044963,7.2276,138.36,138.32,25.3022]
[1728577045674,7.2276,138.36,138.32,26.74790567]
[1728577045881,7.2276,138.36,138.32,25.3022]
[1728577046579,7.2282,138.35,138.31,28.8524]
[1728577047471,7.2282,138.35,138.31,46.9277]
[1728577047976,7.2282,138.35,138.32,7.2295]
[1728577049581,18.0662,138.38,138.28,18.078]
[1728577049582,7.2287,138.34,138.28,18.078]
[1728577049767,7.2287,138.34,138.3,7.2303]
[1728577050781,7.2287,138.34,138.3,25.3069]
[1728577050976,7.2287,138.34,138.31,7.2301]
[1728577051681,7.2282,138.35,138.31,7.2301]
[1728577051980,7.2282,138.35,138.32,7.2295]
[1728577052677,7.2275,138.36,138.32,7.2295]
[1728577052882,21.71,138.45,138.3,36.1519]
[1728577053065,7.2249,138.41,138.32,24.027864]
[1728577053271,7.2254,138.4,138.36,18.0675]
[1728577053464,7.226,138.39,138.36,18.0675]
[1728577054961,7.2245,138.42,138.38,7.2264]
[1728577055272,7.2254,138.4,138.37,7.2268]
[1728577055466,7.2254,138.4,138.36,25.2948]
[1728577057383,7.2259,138.39,138.36,18.0675]
[1728577057567,7.2259,138.39,138.36,25.2949]
[1728577057774,7.2259,138.39,138.36,18.0675]
[1728577058368,23.776884,138.41,138.35,7.2278]
[1728577058889,7.2263,138.39,138.35,7.2278]
[1728577060377,7.2263,138.39,138.35,25.2978]
[1728577060687,23.776884,138.41,138.35,18.07]
[1728577060883,7.2251,138.41,138.37,7.2266]
[1728577061181,7.2255,138.4,138.37,7.2266]
[1728577061382,7.2255,138.4,138.36,7.2273]
[1728577066111,66.72305589,138.46,138.33,36.1436]
[1728577066112,8.90055589,138.46,138.37,1.44532867]
[1728577066400,8.90055589,138.46,138.41,7.2247]
[1728577066401,7.223,138.45,138.41,7.2247]
[1728577066561,8.84071062,138.49,138.41,7.2249]
[1728577066562,8.90055589,138.48,138.41,7.2249]
[1728577066769,7.2234,138.44,138.4,7.2253]
[1728577067266,26.95485589,138.48,138.41,7.2248]
[1728577067471,7.2229,138.45,138.41,7.2248]
[1728577068176,7.2234,138.44,138.39,18.0639]
[1728577068493,7.2234,138.44,138.4,7.2252]
[1728577068865,24.027864,138.46,138.39,18.0639]
[1728577069066,24.027864,138.46,138.37,23.0801]
[1728577069280,7.2255,138.4,138.37,23.0801]
[1728577069765,7.2255,138.4,138.36,25.2948]
[1728577070580,7.2255,138.4,138.37,7.2269]
[1728577070786,7.2251,138.41,138.37,7.2269]
[1728577073901,7.2255,138.4,138.36,18.0675]
[1728577074208,7.2261,138.39,138.36,18.0675]
[1728577074393,7.2261,138.39,138.36,25.2949]
[1728577076121,7.2261,138.39,138.36,18.0675]
[1728577076490,7.2269,138.38,138.34,7.2284]
[1728577076695,7.2266,138.38,138.34,7.2284]
[1728577077191,7.226,138.39,138.35,7.2279]
[1728577077393,7.2256,138.4,138.36,7.2275]
[1728577079684,7.2256,138.4,138.35,18.0699]
[1728577079889,7.225,138.41,138.37,7.2266]
[1728577080192,7.2246,138.42,138.37,18.0674]
[1728577080392,7.2228,138.45,138.36,21.99687644]
[1728577080600,7.223,138.45,138.41,25.2869]
[1728577080937,7.223,138.45,138.38,21.5905]
[1728577080938,16.1827,138.47,138.38,21.5905]
[1728577081086,16.1827,138.47,138.38,39.656]
[1728577081087,18.056,138.46,138.38,39.656]
[1728577081491,7.225,138.41,138.38,21.5905]
[1728577081906,7.225,138.41,138.37,7.2266]
[1728577082997,7.225,138.41,138.35,39.7525]
[1728577082998,7.2254,138.4,138.36,7.2271]
[1728577083511,24.027864,138.43,138.35,39.7525]
[1728577083694,24.027864,138.41,138.35,33.602]
[1728577084012,7.2267,138.38,138.35,33.602]
[1728577084413,7.2267,138.38,138.34,7.2284]
[1728577086203,7.227,138.37,138.33,7.2289]
[1728577088002,7.2256,138.4,138.36,7.2273]
[1728577088406,7.2256,138.4,138.36,8.67271984]
[1728577088903,7.2256,138.4,138.36,7.2273]
[1728577089894,7.2256,138.4,138.36,25.296]
[1728577090490,7.2239,138.43,138.39,7.2256]
[1728577091100,7.2236,138.44,138.4,7.2253]
[1728577091524,7.2238,138.43,138.39,7.2257]
[1728577091821,7.2234,138.44,138.4,7.2253]
[1728577094011,18.0544,138.48,138.42,7.2243]
[1728577094319,7.2224,138.46,138.42,7.2243]
[1728577096700,6.6503,138.5,138.38,64.46027644]
[1728577097017,7.2219,138.47,138.42,18.0607]
[1728577097220,7.2211,138.49,138.45,7.2227]
[1728577098646,24.027864,138.5,138.42,15.0944]
[1728577098808,24.027864,138.48,138.41,18.0611]
[1728577099011,7.2234,138.44,138.41,18.0611]
[1728577099896,24.027864,138.48,138.41,25.2858]
[1728577099897,7.2229,138.45,138.41,25.2858]
[1728577100903,7.2229,138.45,138.38,22.2114]
[1728577100904,7.2233,138.44,138.4,7.2252]
[1728577101098,7.2239,138.43,138.39,7.2258]
[1728577101913,30.375964,138.48,138.38,40.2765]
[1728577102120,30.375964,138.48,138.35,36.1389]
[1728577102121,7.2254,138.4,138.36,7.2273]
[1728577102802,33.2121,138.45,138.35,18.0689]
[1728577102803,7.226,138.39,138.35,25.2968]
[1728577103219,7.2256,138.4,138.36,7.2274]
[1728577103902,7.2251,138.41,138.37,7.2269]
[1728577104303,7.2254,138.4,138.36,7.2271]
[1728577106407,7.2281,138.35,138.32,18.073]
[1728577106623,7.2285,138.34,138.3,29.4187]
[1728577108528,7.2285,138.34,138.3,13.6228]
[1728577109507,0.12549,138.37,138.31,7.2299]
[1728577109715,23.902374,138.38,138.32,7.2295]
[1728577109716,7.2276,138.36,138.32,7.2295]